[Event "44th Chess Olympiad Open 2022"]
[Site "Chennai"]
[Date "2022.08.02"]
[Round "5.34"]
[White "O`Gorman, Tom"]
[Black "Zhemba, Jemusse"]
[Result "1/2-1/2"]
[ECO "C88"]
[WhiteElo "2401"]
[BlackElo "2162"]
[Annotator "TA"]
[PlyCount "148"]
[EventDate "2022.07.29"]
[EventType "team-tourn"]
[EventCountry "IND"]
[SourceTitle "playchess.com"]
[Source "ChessBase"]
[SourceQuality "1"]
[WhiteTeam "Ireland"]
[BlackTeam "Zimbabwe"]
[WhiteTeamCountry "IRL"]
[BlackTeamCountry "ZIM"]
[TimeControl "40/5400+30:1800+30"]

{[%evp 17,148,19,27,11,36,17,31,28,44,19,41,32,52,37,39,34,134,89,95,87,80,82,85,82,87,77,88,94,90,76,110,90,87,84,137,100,143,106,104,76,160,83,67,72,141,-396,-385,-521,-12,-12,-12,-5,-6,-12,-11,-26,-26,-82,-75,-74,-71,-93,-72,-72,-10,-6,-4,-2,-6,-6,0,0,0,0,34,34,34,34,34,34,40,39,41,41,41,41,41,41,49,41,41,41,56,41,56,49,179,8,8,8,70,0,0,0,0,0,8,8,8,8,8,8,8,8,8,8,8,0,0,0,8,0,8,0,8,8,8,8,8,8,8,8,8]} 1. e4 {[%emt 0:00:09]} e5 {[%emt 0:00:05]} 2. Nf3 {[%emt 0:00:06]} Nc6 {[%emt 0:00:07]} 3. Bb5 {[%emt 0:00:09]} a6 {[%emt 0:00:14]} 4. Ba4 {[%emt 0:00:07]} Nf6 {[%emt 0:00:12]} 5. O-O {[%emt 0:00:10]} Be7 {[%emt 0:00:06]} 6. Re1 {[%emt 0:00:07]} b5 {[%emt 0:00:07]} 7. Bb3 {[%emt 0:00:10]} O-O {[%emt 0:00:15]} 8. h3 {[%emt 0:00:27]} Bb7 {[%emt 0:00:56]} 9. d3 {[%emt 0:00:12]} Re8 {[%emt 0:00:33] 9...d5 is the modern continuation.} 10. Nc3 {[%emt 0:06:04] C88: Closed Ruy Lopez: Anti-Marshall Systems.} h6 {[%emt 0:02:45]} 11. a4 {[%emt 0:06:58]} b4 {[%emt 0:01:48]} 12. Nd5 {[%emt 0:00:26] White is slightly better.} Bf8 {[%emt 0:00:05] [#]} 13. c3 $146 {[%emt 0:07:43]} ({Predecessor:} 13. Be3 Na5 14. Nxf6+ Qxf6 15. Ba2 Rad8 {½-½ (15) Manik,M (2451)-Plachetka,J (2414) Slovakia 2006}) 13... Rb8 {[%emt 0:05:12]} 14. a5 {[%emt 0:02:14]} d6 {[%emt 0:05:24]} 15. Bd2 {[%emt 0:05:47]} Nxd5 {[%emt 0:05:38]} 16. Bxd5 {[%emt 0:00:55]} Nxa5 {[%emt 0:04:43]} 17. cxb4 {[%emt 0:03:52]} Nc6 {[%emt 0:07:48][%cal Oc6b4]} 18. Qa4 {[%emt 0:03:11]} Na7 {[%emt 0:02:09]} 19. Bxb7 {[%emt 0:01:29] White is much more active.} Rxb7 {[%emt 0:00:09]} 20. Qxa6 {[%emt 0:00:11]} Qb8 {[%emt 0:00:08]} 21. Rec1 {[%emt 0:08:56]} Nb5 {[%emt 0:01:31]} 22. Qc6 {[%emt 0:04:36]} Rb6 {[%emt 0:02:05]} 23. Qc4 {[%emt 0:01:40]} Qc8 {[%emt 0:10:14]} 24. Be3 {[%emt 0:06:35]} Rb8 {[%emt 0:01:27]} 25. Nd2 {[%emt 0:01:05]} Re6 {[%emt 0:04:11]} (25... Qb7 $142) 26. Nb1 {[%emt 0:02:07]} Rg6 {[%emt 0:00:57]} 27. Kh2 {[%emt 0:00:35]} d5 {[%emt 0:09:32]} 28. exd5 {[%emt 0:01:45]} Bd6 {[%emt 0:04:52]} (28... Qd7 $142) 29. Kh1 {[%emt 0:06:44]} (29. Nc3 $142 Nd4 30. Ne4) 29... Nd4 {[%emt 0:00:00]} 30. Ra4 {[%emt 0:07:43]} Qf5 {[%emt 0:00:05] [#]} ({Black should play} 30... Ne2) 31. Bxd4 $4 {[%emt 0:04:00][%mdl 8192]} (31. Nd2 $1 $16 {is necessary to keep the advantage.}) 31... exd4 $19 {[%emt 0:01:06]} 32. Qxd4 {[%emt 0:01:04]} Rxg2 {[%emt 0:00:26]} 33. Kxg2 $11 {[%emt 0:01:59]} Qg5+ {[%emt 0:00:41]} 34. Qg4 {[%emt 0:00:06]} Qxc1 {[%emt 0:00:04]} 35. Nc3 {[%emt 0:00:16]} Qxb2 {[%emt 0:03:34]} 36. Ne4 {[%emt 0:00:38]} Qb3 {[%emt 0:00:43]} 37. Ra7 {[%emt 0:07:23]} (37. Nxd6 $11 cxd6 38. Ra6) 37... Qxd5 $17 {[%emt 0:01:11] aiming for ...f5.} ({Don't play} 37... Qxd3 $6 38. Qf5 Qd4 39. Nxd6 Qxa7 40. Qxf7+ Kh8 41. Ne8 $11 (41. Nf5 Qa1 $17)) 38. Qf3 {[%emt 0:01:10][%cal Oe4f6] Hoping for Nf6+!} Qd4 {[%emt 0:01:35] Prevents Nf6+.} 39. Ra5 {[%emt 0:00:42][%cal Ba7a5,Ba5d5,Bd5d7,Bd7c7][%mdl 32]} Bxb4 {[%emt 0:01:19]} 40. Rd5 {[%emt 0:01:08]} Qa1 {[%emt 0:00:15]} ({But not} 40... Qxd5 {[#]} 41. Nf6+ $1 gxf6 42. Qxd5 $14) (40... Qb6 $17) 41. Rd7 $132 {[%emt 0:31:05][%csl LRc7,LRf7][%mdl 2048] White is fighting back} Rf8 {[%emt 0:31:56]} 42. Rxc7 {[%emt 0:00:44]} Qe5 {[%emt 0:01:11]} 43. Rd7 {[%emt 0:05:32]} f5 {[%emt 0:02:57]} 44. Ng3 {[%emt 0:01:34]} Bd6 {[%emt 0:02:40]} 45. d4 {[%emt 0:00:00]} Qe6 {[%emt 0:00:00]} 46. Qb7 {[%emt 0:00:00]} Rf7 {[%emt 0:00:00]} 47. Rxf7 {[%emt 0:00:00]} Qxf7 {[%emt 0:00:00]} 48. Qxf7+ {[%emt 0:00:00]} Kxf7 {[%emt 0:00:00]} 49. Nxf5 $14 {[%emt 0:00:00][%mdl 4096] Endgame KB-KN} Bf8 {[%emt 0:00:00]} 50. Kf3 {[%emt 0:00:00]} g6 {[%emt 0:00:00]} 51. Ne3 {[%emt 0:00:00]} Ke6 {[%emt 0:00:00]} 52. Ke4 {[%emt 0:00:00]} Bb4 {[%emt 0:00:00]} 53. Ng4 {[%emt 0:00:00]} h5 $1 {[%emt 0:01:32]} 54. Ne5 {[%emt 0:00:00]} Kf6 {[%emt 0:00:00]} 55. f3 {[%emt 0:00:00]} Bc3 {[%emt 0:00:00]} 56. Nd3 {[%emt 0:00:00]} Kg5 {[%emt 0:00:00]} (56... g5 $14) 57. Nf4 $2 {[%emt 0:00:00]} (57. f4+ $18 Kf6 58. d5) 57... Kh4 $11 {[%emt 0:00:00]} 58. Nxg6+ {[%emt 0:00:00]} Kxh3 {[%emt 0:00:00]} 59. f4 {[%emt 0:00:00]} (59. Ne7 $1 $14) 59... Kg4 {[%emt 0:00:00] The position is equal.} 60. f5 {[%emt 0:00:00][%cal Bf4f5,Bf5f6,Bf6f7][%mdl 32]} h4 {[%emt 0:00:00]} 61. Ne5+ {[%emt 0:03:05]} Kh5 {[%emt 0:00:00]} 62. f6 {[%emt 0:02:43]} h3 {[%emt 0:00:44] ...h2 is the strong threat.} 63. f7 {[%emt 0:00:06]} Bb4 $1 {[%emt 0:00:52] And now ...h2 would win.} 64. Kf3 $1 {[%emt 0:01:19]} Kh6 {[%emt 0:02:03]} 65. Nc6 {[%emt 0:02:22]} h2 {[%emt 0:00:38]} 66. Kg2 {[%emt 0:00:08]} Bd6 {[%emt 0:00:05]} 67. Nd8 {[%emt 0:00:25]} Kg7 {[%emt 0:00:38]} 68. d5 {[%emt 0:00:18]} Be7 {[%emt 0:01:01]} 69. Nc6 {[%emt 0:00:17]} Bd6 {[%emt 0:00:17]} 70. Nd8 {[%emt 0:00:20]} Be7 {[%emt 0:00:16]} 71. Nb7 {[%emt 0:00:42]} Kxf7 {[%emt 0:00:10]} 72. d6 {[%emt 0:00:04]} h1=Q+ {[%emt 0:00:15]} 73. Kxh1 {[%emt 0:00:05]} Bxd6 {[%emt 0:00:08]} 74. Nxd6+ {[%emt 0:00:03]} Kf8 {[%emt 0:00:06] Weighted Error Value: White=0.32/Black=0.34} 1/2-1/2

[Event "44th Chess Olympiad Open 2022"]
[Site "Chennai"]
[Date "2022.08.02"]
[Round "5.57"]
[White "Sulaiman, Ahmad Ashrafi"]
[Black "Kim, Changhoon"]
[Result "0-1"]
[ECO "D02"]
[WhiteElo "1953"]
[BlackElo "1827"]
[Annotator "TA"]
[PlyCount "128"]
[EventDate "2022.07.29"]
[EventType "team-tourn"]
[EventCountry "IND"]
[SourceTitle "playchess.com"]
[Source "ChessBase"]
[SourceQuality "1"]
[WhiteTeam "Afghanistan"]
[BlackTeam "Korea"]
[WhiteTeamCountry "AFG"]
[BlackTeamCountry "KOR"]
[TimeControl "40/5400+30:1800+30"]

{[%evp 17,128,-15,-8,-11,7,-27,6,10,14,6,12,0,0,-1,-7,-16,13,-7,0,-4,-4,-10,0,0,-7,-71,-78,-44,-18,-12,47,42,47,-34,33,21,62,-39,-23,-114,-47,-112,-27,-11,-38,-251,-119,-113,-100,-114,-101,-114,-89,-77,0,-101,0,0,-3,-70,-73,-56,-25,-26,-29,-93,-20,-32,-21,-25,-22,-15,0,0,0,0,0,0,0,0,0,0,0,0,0,-22,-22,-43,-8,-8,0,-3,-3,-29968,-29969,-29965,-29969,-29968,-29966,-29965,-22,-22,-22,-22,-23,-23,-32,-5455,-48,-48,-23,-29993,-29994]} 1. d4 {[%emt 0:00:02]} d5 {[%emt 0:00:08]} 2. Bf4 {[%emt 0:00:09]} Nf6 {[%emt 0:00:58]} 3. e3 {[%emt 0:00:14]} c5 {[%emt 0:00:25]} 4. c3 {[%emt 0:00:15]} Nc6 {[%emt 0:00:18]} 5. Nd2 {[%emt 0:00:21]} e6 {[%emt 0:00:12]} 6. Ngf3 {[%emt 0:00:40]} Bd6 {[%emt 0:00:09]} 7. Bg3 {[%emt 0:01:05]} O-O {[%emt 0:00:15]} 8. Be2 {[%emt 0:00:22]} b6 {[%emt 0:00:19]} 9. O-O {[%emt 0:01:13]} Bb7 {[%emt 0:00:16]} 10. a4 {[%emt 0:00:35] [#] D02: 1 d4 d5 2 Nf3 sidelines, including 2...Nf6 3 g3 and 2...Nf6 3 Bf4.} Qc7 $146 {[%emt 0:02:42]} ({Predecessor:} 10... Re8 11. Bb5 Bxg3 12. hxg3 Nd7 13. Qb3 Qc7 14. Rfd1 a6 15. Bxc6 Bxc6 16. Qa3 a5 17. Qb3 Rab8 {0-1 (85) Ustianovich,N (2376)-Frolyanov,D (2542) Riga 2019}) 11. Qc2 {[%emt 0:03:15]} e5 {[%emt 0:01:25]} 12. dxe5 {[%emt 0:00:09] The position is equal.} (12. Nxe5 {is more complex.} Nxe5 13. Bxe5 Bxe5 14. dxe5 Qxe5 15. a5) 12... Nxe5 {[%emt 0:00:09]} 13. Nxe5 {[%emt 0:02:11]} Bxe5 {[%emt 0:00:06]} 14. Bf3 {[%emt 0:01:00]} Bxg3 {[%emt 0:03:03]} 15. hxg3 {[%emt 0:00:14]} Rfe8 {[%emt 0:03:02]} 16. Rfd1 {[%emt 0:06:29]} Rac8 {[%emt 0:02:43]} 17. Qb3 {[%emt 0:05:28]} Bc6 {[%emt 0:12:09]} 18. Qa3 {[%emt 0:04:56]} Bd7 {[%emt 0:06:42]} 19. Rac1 {[%emt 0:03:48]} Qc6 {[%emt 0:01:40]} 20. c4 {[%emt 0:00:29]} Qxa4 {[%emt 0:07:14]} 21. cxd5 {[%emt 0:00:12]} (21. Qc3 $11) 21... Qxa3 $17 {[%emt 0:00:43] Black is more active.} 22. bxa3 {[%emt 0:00:09]} Ba4 {[%emt 0:03:45]} 23. Re1 {[%emt 0:00:09]} Red8 {[%emt 0:03:15]} (23... g5 $11) 24. e4 $14 {[%emt 0:03:55]} b5 {[%emt 0:01:26]} 25. Nf1 {[%emt 0:06:17]} ({White should play} 25. Nb1 $14) 25... a5 {[%emt 0:05:45]} (25... c4 $15) 26. Ne3 {[%emt 0:02:42] Black must now prevent e5.} c4 {[%emt 0:04:38]} 27. Nf5 {[%emt 0:01:20]} ({White has to play} 27. e5 $14 Nd7 28. Nf5) 27... Kf8 $1 $15 {[%emt 0:01:14] Threatening ...c3.} 28. Ne3 {[%emt 0:02:00]} (28. Nd4 $1 $11 {remains equal.}) 28... Nd7 {[%emt 0:00:38]} (28... Re8 $17 29. Nf5 Re5) 29. Bg4 {[%emt 0:00:11]} (29. Bd1 $1 $15) 29... Rc5 {[%emt 0:00:35]} (29... c3 $17 {aiming for ...b4.} 30. Ra1 c2 31. Bxd7 Rxd7) 30. Bxd7 $11 {[%emt 0:00:23]} Rxd7 {[%emt 0:00:03]} 31. e5 $2 {[%emt 0:00:23]} ({White should try} 31. Rc3 $1 $15) 31... Rdxd5 {[%emt 0:03:20]} (31... c3 $19 {Threatens to win with ...c2.} 32. f4 c2) 32. Nxd5 $17 {[%emt 0:00:15]} Rxd5 $19 {[%emt 0:00:02][%mdl 4096] Endgame KRR-KRB} 33. Re3 {[%emt 0:01:39]} Ke7 {[%emt 0:01:07][%mdl 1024] Black has strong compensation.} 34. f4 {[%emt 0:03:02]} Bb3 {[%emt 0:03:24]} 35. Kf2 {[%emt 0:02:30]} Ke6 {[%emt 0:03:24]} (35... h5 $17) 36. Kf3 {[%emt 0:01:10]} (36. g4 $1 $11 {keeps the balance.}) 36... Rd2 {[%emt 0:03:10]} (36... b4 $17 {Hoping for ...c3.} 37. axb4 axb4) 37. g4 $1 $11 {[%emt 0:00:51]} g6 {[%emt 0:00:43] Against f5+. next ...Bc2 is good for Black.} 38. Kg3 {[%emt 0:00:37]} (38. f5+ $11 gxf5 39. gxf5+ Kxf5 40. Rf1) 38... Bc2 $15 {[%emt 0:01:04]} 39. f5+ {[%emt 0:01:54]} gxf5 {[%emt 0:00:14]} 40. gxf5+ {[%emt 0:00:15]} Bxf5 {[%emt 0:00:58]} 41. a4 $1 {[%emt 0:30:16]} Bd3 {[%emt 0:32:02]} ({Resist} 41... bxa4 42. Rxc4 Bc2 43. Rc5 $14) (41... b4 $17 42. Rxc4 Rc2) 42. axb5 $11 {[%emt 0:00:26]} Rb2 {[%emt 0:00:03]} 43. Ra1 {[%emt 0:03:07]} Rxb5 {[%emt 0:01:06]} 44. Kf4 {[%emt 0:00:17]} Kd5 {[%emt 0:00:23]} 45. e6 $1 {[%emt 0:01:01]} fxe6 {[%emt 0:00:15] And now ...Kd4 would win.} 46. Re5+ {[%emt 0:00:07]} Kc6 {[%emt 0:00:24]} 47. Rxe6+ {[%emt 0:05:35]} Kc5 {[%emt 0:00:17]} 48. Re5+ {[%emt 0:00:59]} Kb4 {[%emt 0:00:15]} 49. Rxb5+ {[%emt 0:00:33]} Kxb5 {[%emt 0:00:06] KR-KB} 50. Ke3 {[%emt 0:01:20]} Kb4 {[%emt 0:00:38] Strongly threatening ...a4.} 51. Kd2 {[%emt 0:04:55]} Be4 {[%emt 0:00:14]} 52. Rh1 {[%emt 0:00:32]} c3+ {[%emt 0:00:32]} 53. Kc1 {[%emt 0:00:05] White wants to mate with Rh4.} Kc4 {[%emt 0:07:00]} 54. Rh5 {[%emt 0:01:20]} a4 {[%emt 0:00:30]} 55. g3 $2 {[%emt 0:00:35][%mdl 8192] [#]} (55. Rh4 $11 Kd4 56. Rh6) 55... a3 {[%emt 0:06:56]} 56. Ra5 {[%emt 0:01:03]} Kb3 {[%emt 0:03:28]} 57. Rb5+ {[%emt 0:03:38]} Ka4 {[%emt 0:00:10]} 58. Rb6 {[%emt 0:00:07]} a2 $2 {[%emt 0:00:24]} (58... Bd3 {mates} 59. Rb7 a2 60. Ra7+ Kb3 61. Rb7+ {[#]} Bb5 $1 {[%mdl 512]} 62. Rxb5+ Ka4 63. Rb8 a1=Q+ 64. Kc2 Qe1 65. Ra8+ Kb5 66. Rb8+ Ka5 67. Rd8 Qe5 68. Kb3 c2 69. Ra8+ Kb6 70. Kxc2 Qe4+ 71. Kd2 Qxa8 72. Ke3 Qd5 73. g4 Kc5 74. g5 Qxg5+ 75. Kd3 h5 76. Ke2 Kd4 77. Kf3 h4 78. Ke2 Qg2+ 79. Kd1 Kd3 80. Ke1 Qg1#) 59. Ra6+ {[%emt 0:01:13]} Kb3 {[%emt 0:00:38]} 60. Rb6+ $1 {[%emt 0:03:26]} Kc4 {[%emt 0:00:29]} 61. Ra6 {[%emt 0:01:44]} Bb1 {[%emt 0:00:26] ( -> ...h5)} 62. Ra4+ $2 {[%emt 0:05:50][%mdl 8192]} (62. g4 $15) 62... Kd3 $2 {[%emt 0:00:32]} ({Better is} 62... Kb5 $19 63. Ra8 h5) 63. g4 $1 $15 {[%emt 0:00:40]} h6 {[%emt 0:01:07]} 64. Kd1 $2 {[%emt 0:00:56][%mdl 8192]} (64. Ra6 $11) 64... Bc2+ {[%emt 0:00:17] Weighted Error Value: White=0.58/Black=0.48} 0-1

[Event "44th Chess Olympiad Open 2022"]
[Site "Chennai"]
[Date "2022.08.02"]
[Round "5.64"]
[White "Mirulla, David"]
[Black "Mathurin, Nathaniel"]
[Result "0-1"]
[ECO "B53"]
[WhiteElo "1953"]
[BlackElo "1722"]
[Annotator "TA"]
[PlyCount "90"]
[EventDate "2022.07.29"]
[EventType "team-tourn"]
[EventCountry "IND"]
[SourceTitle "playchess.com"]
[Source "ChessBase"]
[SourceQuality "1"]
[WhiteTeam "CPV"]
[BlackTeam "LCA"]
[TimeControl "40/5400+30:1800+30"]

{[%evp 10,90,21,6,20,-12,-21,-14,0,-24,-5,-17,5,-24,0,-32,-36,-69,-50,-97,-107,-102,-90,-186,-183,-220,-220,-208,-217,-239,-195,-194,-163,-223,-122,-128,-115,-113,-111,-113,-105,-106,-92,-126,-123,-135,-117,-129,-123,-128,-114,-222,-214,-212,-190,-187,-197,-193,-210,-255,-195,-466,-423,-415,-427,-404,-419,-539,-526,-577,-544,-644,-614,-608,-601,-1031,-1033,-995,-980,-962,-943,-873,-806]} 1. e4 {[%emt 0:00:04]} c5 {[%emt 0:00:31]} 2. Nf3 {[%emt 0:00:11]} d6 {[%emt 0:00:05]} 3. d4 {[%emt 0:00:09]} Nf6 {[%emt 0:00:48]} 4. dxc5 {[%emt 0:02:40]} Nxe4 {[%emt 0:00:18]} 5. cxd6 {[%emt 0:02:26]} Nc6 {[%emt 0:04:36]} 6. Bd3 {[%emt 0:07:53]} Nxd6 {[%emt 0:01:15] B53: Sicilian: 2...d6: Lines with Qxd4.} 7. h3 {[%emt 0:05:10]} g6 {[%emt 0:02:24]} 8. O-O {[%emt 0:02:50]} Bg7 {[%emt 0:00:01] The position is equal.} 9. Re1 {[%emt 0:13:04]} O-O {[%emt 0:02:04]} 10. c3 {[%emt 0:05:31] [#]} Qb6 $146 {[%emt 0:11:35]} ({Predecessor:} 10... Bf5 11. Bxf5 Nxf5 12. Nbd2 Qc7 13. Ne4 Rad8 14. Qe2 b6 15. g4 Nd6 16. Bf4 e5 17. Nxd6 Rxd6 18. Nxe5 {0-1 (32) Anand,V (2786)-Nepomniachtchi,I (2751) Zuerich 2017}) 11. Qb3 {[%emt 0:03:20]} Be6 {[%emt 0:03:13][%cal Bc8e6,Be6a2,Ba2c4][%mdl 32]} 12. Qxb6 {[%emt 0:05:37]} axb6 {[%emt 0:00:02]} 13. Be3 {[%emt 0:05:51]} Bxa2 {[%emt 0:00:59]} 14. Bxb6 {[%emt 0:04:33]} (14. Na3 $15 {is more appropriate.} Bxc3 15. Rxa2 Bxe1 16. Nxe1) 14... Bc4 $17 {[%emt 0:00:28]} 15. Rxa8 {[%emt 0:06:31]} Rxa8 {[%emt 0:00:02][%cal Bf8a8,Ba8a2,Ba2c2][%mdl 32]} 16. Bc2 {[%emt 0:01:34]} (16. Bxc4 $17 Nxc4 17. Bc5) 16... Ra2 $19 {[%emt 0:01:07]} 17. b3 {[%emt 0:22:58]} Rxc2 {[%emt 0:03:53]} 18. bxc4 {[%emt 0:00:07]} Nxc4 {[%emt 0:00:04]} 19. Bc5 {[%emt 0:00:27]} Bf6 {[%emt 0:03:31]} 20. Kf1 {[%emt 0:03:23]} b6 {[%emt 0:05:24]} 21. Be3 {[%emt 0:01:53]} (21. Bd4 $142) 21... b5 {[%emt 0:00:17]} (21... Bxc3 $19 22. Nxc3 Rxc3) 22. Re2 $17 {[%emt 0:00:28]} Rxe2 {[%emt 0:16:01] 0x0.001b83e4fb57dp-1022s more active pieces.} 23. Kxe2 {[%emt 0:00:03]} Kf8 {[%emt 0:00:20]} 24. Nfd2 {[%emt 0:01:11]} Nd6 {[%emt 0:02:38]} 25. Bc5 {[%emt 0:00:36]} Nb7 {[%emt 0:03:12]} 26. Ba3 {[%emt 0:00:53]} Ke8 {[%emt 0:00:55]} 27. Kd3 {[%emt 0:00:19]} Be5 {[%emt 0:06:12]} 28. Nf3 {[%emt 0:00:45]} f6 {[%emt 0:03:34]} 29. Nbd2 {[%emt 0:01:14]} Bc7 {[%emt 0:01:00]} 30. c4 {[%emt 0:01:46]} (30. Nd4 $17 Nxd4 31. cxd4) 30... b4 $19 {[%emt 0:00:18]} 31. Bb2 {[%emt 0:00:24]} Nc5+ {[%emt 0:00:58]} 32. Kc2 {[%emt 0:00:40]} e5 {[%emt 0:02:02]} 33. Ne1 {[%emt 0:00:14]} Na5 {[%emt 0:01:33]} 34. f3 {[%emt 0:01:29]} Kd7 {[%emt 0:10:33]} 35. Ne4 $2 {[%emt 0:00:23] [#]} (35. Nd3 Nxd3 36. Kxd3) 35... Nxe4 {[%emt 0:00:15]} 36. fxe4 {[%emt 0:00:01]} Nxc4 {[%emt 0:01:03][%mdl 4096] Endgame KBN-KBN} 37. Bc1 {[%emt 0:01:28]} Kc6 {[%emt 0:00:29]} 38. Kb3 {[%emt 0:00:52]} Kb5 {[%emt 0:00:02] Black is clearly winning.} 39. Bh6 {[%emt 0:00:16]} Bd6 {[%emt 0:00:30]} 40. Nd3 {[%emt 0:00:44]} Na5+ {[%emt 0:03:53]} 41. Kc2 {[%emt 0:02:06]} Kc4 {[%emt 0:01:23]} 42. Be3 {[%emt 0:02:14]} b3+ {[%emt 0:00:07][%cal Bb4b3,Bb3b2][%mdl 32]} 43. Kd2 {[%emt 0:00:15]} Bb4+ {[%emt 0:00:24]} 44. Ke2 {[%emt 0:00:23]} Ba3 {[%emt 0:00:53]} 45. Kd2 {[%emt 0:02:50]} b2 {[%emt 0:00:09] Weighted Error Value: White=0.47/Black=0.13 (very precise)} 0-1